Cogmind - Beta 12 @@@ ROGUE MODE // 2023.03.22 @ 20:28:20 Player: lyrabold Result: Self-destructed Performance ------------- Evolutions (4) 2000 Regions Visited (8) 1600 Robots Destroyed (19) 95 Value Destroyed (284) 284 Prototype IDs (0) 0 Alien Tech Used (0) 0 Bonus (700) 700 TOTAL SCORE: 4679 Bonus ------- Entered Garrisons 200 Entered DSFs 500 Cogmind --------- Core Integrity 349/850 Matter 215/300 Energy 60/100 System Corruption 2% Temperature Cool (48) Movement Flying (29) Location -6/Factory Parts ------- > --- POWER (1) -------- (None) > --- PROPULSION (6) --- Surge Thruster Surge Thruster Surge Thruster > --- UTILITY (6) ------ Machine Analyzer Improved Sensor Array Signal Interpreter > --- WEAPON (2) ------- (None) > --- INVENTORY (5) ---- Micro Nuclear Core Transmission Jammer Mini Grenade Launcher Datajack Peak State ------------ > --- POWER ------------ Micro Nuclear Core > --- PROPULSION ------- Flight Unit Flight Unit VTOL Module VTOL Module VTOL Module Cesium-ion Thruster > --- UTILITY ---------- Machine Analyzer Signal Interpreter Hardened Light Armor Plating Hardened Light Armor Plating > --- WEAPON ----------- Mini Grenade Launcher > --- INVENTORY -------- Flight Unit Mini Grenade Launcher Mini Grenade Launcher Datajack [Rating: 25] Favorites ----------- Power Micro Nuclear Core Engine Ion Engine Power Core Micro Nuclear Core Propulsion Flight Unit Treads Light Treads Flight Unit Flight Unit Utility Hardened Light Armor Plating Device Improved Sensor Array Processor Signal Interpreter Protection Hardened Light Armor Plating Weapon Mini Grenade Launcher Launcher Mini Grenade Launcher Build | -11 -10 -9 -8 -7 -7 -6 -6 -6 ------- Run | Jun Mat Mat Mat Fac DSF Fac Gar Fac Slots Evolved 8 | . . 2 2 2 . 2 . . Power . | . . . . . . . . . Propulsion 4 | . . 1 1 1 . 1 . . Utility 4 | . . 1 1 1 . 1 . . Weapon . | . . . . . . . . . Parts Attached 25 | 2 . 8 5 2 1 1 4 2 Power 2 | . . . 1 . 1 . . . Engine 1 | . . . 1 . . . . . Core 1 | . . . . . 1 . . . Reactor . | . . . . . . . . . Propulsion 16 | 2 . 5 2 2 . 1 3 1 Treads 3 | 2 . 1 . . . . . . Leg . | . . . . . . . . . Wheel . | . . . . . . . . . Hover . | . . . . . . . . . Flight 13 | . . 4 2 2 . 1 3 1 Utility 5 | . . 2 2 . . . . 1 Device 1 | . . . . . . . . 1 Storage . | . . . . . . . . . Processor 2 | . . 1 1 . . . . . Hackware . | . . . . . . . . . Protection 2 | . . 1 1 . . . . . Artifact . | . . . . . . . . . Weapon 2 | . . 1 . . . . 1 . Energy Gun . | . . . . . . . . . Energy Cannon . | . . . . . . . . . Ballistic Gun . | . . . . . . . . . Ballistic Cannon . | . . . . . . . . . Launcher 2 | . . 1 . . . . 1 . Special Weapon . | . . . . . . . . . Impact Weapon . | . . . . . . . . . Slashing Weapon . | . . . . . . . . . Piercing Weapon . | . . . . . . . . . Special Melee Weapon . | . . . . . . . . . Unidentified Prototypes . | . . . . . . . . . Parts Lost 11 | . . 1 2 . . 1 7 . Power 1 | . . . 1 . . . . . Propulsion 9 | . . 1 1 . . 1 6 . Utility . | . . . . . . . . . Weapon 1 | . . . . . . . 1 . Highest Loss Streak 7 | . . 1 2 . . 1 7 . To Critical Strikes . | . . . . . . . . . Average Slot Usage (%) 55 | . 28 48 66 69 76 78 49 33 Engine 1 | . . . 6 . . . . . Core 1 | . . . . . . 6 3 . Treads 6 | . 28 11 . . . . . . Flight 22 | . . 19 28 30 38 38 18 20 Processor 8 | . . 4 11 15 15 13 13 13 Protection 7 | . . 4 11 15 15 13 7 . Launcher 6 | . . 8 9 7 7 6 5 . Naked Turns . | . . . . . . . . . Heaviest Build 17 | . . 6 16 11 17 17 17 1 Greatest Support 25 | 3 3 12 17 21 21 25 21 9 Greatest Overweight (x) . | . . . . . . . . . Average Overweight (x) . | . . . . . . . . . Largest Inventory Capacity 5 | 5 5 5 5 5 5 5 5 5 Average Capacity 5 | 5 5 5 5 5 5 5 5 5 Most Carried 5 | . 3 5 5 5 5 5 5 5 Average Carried 4 | . 2 4 4 5 5 4 4 4 Final Capacity 5 | 5 5 5 5 5 5 5 5 5 Final Carried 5 | . 3 5 5 5 5 5 5 4 Class Distribution -------------------- 36% | Sprinter 33% | Scavenger-Mutant 29% | Mutant Dominant Class ---------------- Mutant | -10/Materials Scavenger-Mutant | -9/Materials Scavenger-Mutant | -8/Materials Scavenger-Mutant | -7/Factory Scavenger-Mutant | -7/DSF Sprinter | -6/Factory Sprinter | -6/Garrison Sprinter | -6/Factory Resources | -11 -10 -9 -8 -7 -7 -6 -6 -6 ----------- Run | Jun Mat Mat Mat Fac DSF Fac Gar Fac Matter Collected 415 | 175 30 46 94 . . . 70 . Remotely . | . . . . . . . . . Salvage Created 197 | . 30 70 14 . . 6 77 . Parts 36 | . 4 15 6 . . 2 9 . Haulers Intercepted . | . . . . . . . . . Recyclers Shooed . | . . . . . . . . . Parts Field Recycled . | . . . . . . . . . Retrieved Matter . | . . . . . . . . . Parts Self-Destructed . | . . . . . . . . . Prevented . | . . . . . . . . . Kills | -11 -10 -9 -8 -7 -7 -6 -6 -6 ------- Run | Jun Mat Mat Mat Fac DSF Fac Gar Fac Combat Hostiles Destroyed 17 | . . 10 3 . . . 4 . AOE 17 | . . 10 3 . . . 4 . Classes Destroyed 5 | . 1 1 . . . 1 2 . Tunneler 1 | . 1 . . . . . . . Operator 1 | . . . . . . 1 . . Swarmer 14 | . . 10 3 . . . 1 . Cutter 2 | . . . . . . . 2 . Grunt 1 | . . . . . . . 1 . Best Kill Streak 7 | . 1 7 3 . . 1 4 . Combat Bots Only 7 | . . 7 3 . . . 4 . Max Kills in Single Turn 3 | . 1 3 3 . . 1 1 . Gunslinging . | . . . . . . . . . Exploded 3 | . . 3 3 . . . 1 . Melee . | . . . . . . . . . Uniques/NPCs Destroyed . | . . . . . . . . . Combat | -11 -10 -9 -8 -7 -7 -6 -6 -6 -------- Run | Jun Mat Mat Mat Fac DSF Fac Gar Fac Damage Taken 1706 | . 139 343 222 . . 59 943 . Core 837 | . 68 175 93 . . . 501 . Absorbed by Shields 37 | . . . . . . . 37 . Core Remaining (%) 82 | 100 72 56 83 . 100 . . . Volleys Fired 12 | . . 6 1 . . 1 4 . Largest 1 | . . 1 1 . . 1 1 . Hottest 30 | . . 30 30 . . 30 30 . Shots Fired 12 | . . 6 1 . . 1 4 . Gun . | . . . . . . . . . Cannon . | . . . . . . . . . Launcher 12 | . . 6 1 . . 1 4 . Special . | . . . . . . . . . Kinetic . | . . . . . . . . . Thermal . | . . . . . . . . . Explosive 12 | . . 6 1 . . 1 4 . Electromagnetic . | . . . . . . . . . Robot Hit Streak 3 | . . 1 . . . 2 3 . Robot Miss Streak 2 | . . 2 . . . . 2 . Penetration Max . | . . . . . . . . . Secondary Targets . | . . . . . . . . . Shots Hit Robots 4 | . . 2 . . . 1 1 . Core Hits 27 | . 2 13 4 . . 1 7 . Critical Kills . | . . . . . . . . . Critical Parts Destroyed . | . . . . . . . . . Critical Strikes . | . . . . . . . . . Melee Attacks . | . . . . . . . . . Impact . | . . . . . . . . . Slashing . | . . . . . . . . . Piercing . | . . . . . . . . . Sneak Attacks . | . . . . . . . . . Combat Hostiles . | . . . . . . . . . Follow-up Attacks . | . . . . . . . . . Damage Inflicted 1076 | . 40 533 124 . . 54 325 . Guns . | . . . . . . . . . Cannons . | . . . . . . . . . Explosions 1036 | . . 533 124 . . 54 325 . Melee . | . . . . . . . . . Ramming 40 | . 40 . . . . . . . Kinetic . | . . . . . . . . . Thermal . | . . . . . . . . . Explosive 1036 | . . 533 124 . . 54 325 . Electromagnetic . | . . . . . . . . . Impact . | . . . . . . . . . Slashing . | . . . . . . . . . Piercing . | . . . . . . . . . Highest Corruption 2 | . . . . . . . 2 2 Average Corruption 1 | . . . . . . . 1 2 Corruption Purged . | . . . . . . . . . Corruption Blocked . | . . . . . . . . . Effects 1 | . . . . . . . . 1 Heat Flow Errors 1 | . . . . . . . . 1 Overload Shots . | . . . . . . . . . Overflow Damage 52 | . . 46 . . . . 6 . Projectiles . | . . . . . . . . . Explosions 52 | . . 46 . . . . 6 . Melee . | . . . . . . . . . Knockbacks . | . . . . . . . . . Impact . | . . . . . . . . . Kinetic . | . . . . . . . . . Secondary . | . . . . . . . . . Self-Inflicted Damage 275 | . 16 96 . . . . 163 . Shots 6 | . . 2 . . . . 4 . Rammed 16 | . 16 . . . . . . . Targets Rammed 16 | . 16 . . . . . . . Kicked . | . . . . . . . . . Crushed . | . . . . . . . . . Highest Temperature 198 | . . 16 28 6 . 98 162 198 Average Temperature 72 | . . 10 13 3 . 77 83 117 Received Heat Transfer 375 | . 48 63 72 . . 9 183 . Siege Activations . | . . . . . . . . . Robots Corrupted . | . . . . . . . . . Combat Hostiles . | . . . . . . . . . Parts Fried . | . . . . . . . . . Impact Corruptions . | . . . . . . . . . Robots Melted . | . . . . . . . . . Combat Hostiles . | . . . . . . . . . Parts Melted . | . . . . . . . . . Heat Transferred . | . . . . . . . . . Parts Sabotaged . | . . . . . . . . . Parts Stolen . | . . . . . . . . . Parts Stripped . | . . . . . . . . . Power Chain Reactions . | . . . . . . . . . Missiles Intercepted . | . . . . . . . . . Alert | -11 -10 -9 -8 -7 -7 -6 -6 -6 ------- Run | Jun Mat Mat Mat Fac DSF Fac Gar Fac Peak Influence 361 | . 25 361 312 132 95 124 234 117 Initial 152 | . . 10 152 132 95 49 101 117 Average 148 | . 10 210 226 132 95 100 164 117 Maximum Alert Level 1 | . . 1 1 . . . 1 . Low Security (%) 67 | 100 100 33 36 100 100 100 77 100 Level 1 32 | . . 66 64 . . . 22 . Level 2 . | . . . . . . . . . Level 3 . | . . . . . . . . . Level 4 . | . . . . . . . . . Level 5 . | . . . . . . . . . High Security . | . . . . . . . . . Max Security . | . . . . . . . . . Squads Dispatched 11 | . 2 4 2 . . 3 . . Investigation 8 | . 1 3 1 . . 3 . . Extermination . | . . . . . . . . . Reinforcement 3 | . 1 1 1 . . . . . Assault . | . . . . . . . . . Garrison . | . . . . . . . . . Intercept . | . . . . . . . . . Searches Triggered . | . . . . . . . . . Construction Impeded . | . . . . . . . . . Haulers Reinforced . | . . . . . . . . . Active Scanning Responses . | . . . . . . . . . Cargo Convoy Interrupts . | . . . . . . . . . Stealth | -11 -10 -9 -8 -7 -7 -6 -6 -6 --------- Run | Jun Mat Mat Mat Fac DSF Fac Gar Fac Distress Signals 2 | . . 1 1 . . . . . Communications Jammed . | . . . . . . . . . Distress Signals . | . . . . . . . . . Times Spotted 66 | . 10 20 18 1 1 5 11 . Peak Tracking Total 14 | . 8 11 14 2 1 5 11 . Tactical Retreats 4 | . 1 1 1 . . . 1 . Traps | -11 -10 -9 -8 -7 -7 -6 -6 -6 ------- Run | Jun Mat Mat Mat Fac DSF Fac Gar Fac Traps Triggered 1 | . . . . . . . 1 . Indirectly . | . . . . . . . . . Trap Hack Attempts . | . . . . . . . . . Triggered . | . . . . . . . . . Disarmed . | . . . . . . . . . Reprogrammed . | . . . . . . . . . Reused . | . . . . . . . . . Traps Extracted . | . . . . . . . . . Installed . | . . . . . . . . . Triggered . | . . . . . . . . . Machines | -11 -10 -9 -8 -7 -7 -6 -6 -6 ---------- Run | Jun Mat Mat Mat Fac DSF Fac Gar Fac Machines Disabled 2 | . . 2 . . . . . . Max in Single Turn 1 | . . 1 . . . . . . Machines Repaired . | . . . . . . . . . Machines Sabotaged . | . . . . . . . . . Overloaded Fab Kills . | . . . . . . . . . Hacking | -11 -10 -9 -8 -7 -7 -6 -6 -6 --------- Run | Jun Mat Mat Mat Fac DSF Fac Gar Fac Machines Accessed 13 | . 2 3 2 1 . 4 1 . Terminals 12 | . 2 3 2 1 . 3 1 . Fabricators . | . . . . . . . . . Repair Stations . | . . . . . . . . . Recycling Units . | . . . . . . . . . Scanalyzers . | . . . . . . . . . Garrison Access 1 | . . . . . . 1 . . Total Hacks 42 | . 8 9 11 3 . 9 2 . Successful 12 | . 2 2 3 1 . 3 1 . Failed 30 | . 6 7 8 2 . 6 1 . Catastrophic 6 | . 1 1 2 . . 1 1 . Database Lockouts . | . . . . . . . . . Manual 27 | . 8 7 6 . . 6 . . Terminals 41 | . 8 9 11 3 . 8 2 . Fabricators . | . . . . . . . . . Repair Stations . | . . . . . . . . . Recycling Units . | . . . . . . . . . Scanalyzers . | . . . . . . . . . Garrison Access 1 | . . . . . . 1 . . Terminal Hacks 6 | . 1 1 2 1 . . 1 . Open DSF 1 | . . . . 1 . . . . Emergency Access Points 1 | . . . . . . . 1 . Reinforcement Status 2 | . 1 1 . . . . . . Zone Layout 2 | . . . 2 . . . . . Fabricator Hacks . | . . . . . . . . . Repair Station Hacks . | . . . . . . . . . Recycling Unit Hacks . | . . . . . . . . . Scanalyzer . | . . . . . . . . . Garrison Access Hacks 1 | . . . . . . 1 . . Unlock Access 1 | . . . . . . 1 . . Unauthorized Hacks 5 | . 1 1 1 . . 2 . . Terminals 5 | . 1 1 1 . . 2 . . Botnet 5 | . 1 1 1 . . 2 . . Fabricators . | . . . . . . . . . Repair Stations . | . . . . . . . . . Recycling Units . | . . . . . . . . . Scanalyzers . | . . . . . . . . . Garrison Access . | . . . . . . . . . Data Cores Recovered 1 | . . . . . . 1 . . Used 1 | . . . . . . 1 . . Hacking Detections 12 | . 2 3 2 . . 4 1 . Full Trace Events 10 | . 1 3 2 . . 3 1 . Feedback Events . | . . . . . . . . . Feedback Blocked . | . . . . . . . . . Robot Schematics Acquired . | . . . . . . . . . Robots Built . | . . . . . . . . . Authchips . | . . . . . . . . . Time . | . . . . . . . . . Total Robot Build Rating . | . . . . . . . . . Part Schematics Acquired . | . . . . . . . . . Parts Built . | . . . . . . . . . Authchips . | . . . . . . . . . Time . | . . . . . . . . . Total Part Build Rating . | . . . . . . . . . Parts Repaired . | . . . . . . . . . Time . | . . . . . . . . . Parts Recycled . | . . . . . . . . . Recycled Matter . | . . . . . . . . . Retrieved Matter . | . . . . . . . . . Retrieved Components . | . . . . . . . . . Parts Scanalyzed . | . . . . . . . . . Part Schematics Acquired . | . . . . . . . . . Parts Damaged . | . . . . . . . . . Bothacking | -11 -10 -9 -8 -7 -7 -6 -6 -6 ------------ Run | Jun Mat Mat Mat Fac DSF Fac Gar Fac Used RIF Installer . | . . . . . . . . . Robots Hacked . | . . . . . . . . . Non-combat . | . . . . . . . . . Combat . | . . . . . . . . . Robot Hacks Applied . | . . . . . . . . . Relay Couplers Released . | . . . . . . . . . Fabnet Peak Effective % . | . . . . . . . . . Robots Rewired . | . . . . . . . . . Allies Hacked . | . . . . . . . . . Hacks Repelled . | . . . . . . . . . Allies | -11 -10 -9 -8 -7 -7 -6 -6 -6 -------- Run | Jun Mat Mat Mat Fac DSF Fac Gar Fac Total Allies . | . . . . . . . . . Largest Group . | . . . . . . . . . Highest-Rated Group . | . . . . . . . . . Highest-Rated Ally . | . . . . . . . . . Total Orders . | . . . . . . . . . Ally Attacks . | . . . . . . . . . Total Damage . | . . . . . . . . . Kills . | . . . . . . . . . Allies Corrupted . | . . . . . . . . . Allies Melted . | . . . . . . . . . Intel | -11 -10 -9 -8 -7 -7 -6 -6 -6 ------- Run | Jun Mat Mat Mat Fac DSF Fac Gar Fac Robot Analysis Total . | . . . . . . . . . Derelict Logs Recovered . | . . . . . . . . . Drone Launches . | . . . . . . . . . Drone Recoveries . | . . . . . . . . . Exploration | -11 -10 -9 -8 -7 -7 -6 -6 -6 ------------- Run | Jun Mat Mat Mat Fac DSF Fac Gar Fac Turns Passed 404 | 13 52 99 75 19 10 56 71 9 Spaces Moved 964 | 21 66 181 198 56 33 206 181 22 Core 161 | 21 66 47 . . . . 27 . Treads . | . . . . . . . . . Legs . | . . . . . . . . . Wheels . | . . . . . . . . . Hover . | . . . . . . . . . Flight 803 | . . 134 198 56 33 206 154 22 Fastest Speed 21 | 50 50 34 29 25 25 21 24 26 Average Speed 32 | 50 50 38 32 27 25 25 28 28 Slowest Speed 50 | 50 50 50 34 32 25 28 50 29 Overloaded Moves 13 | . . . . . . . 12 1 Propulsion Burnouts . | . . . . . . . . . Robots Hopped 14 | . . 3 7 1 . . 2 1 Cave-ins Triggered . | . . . . . . . . . Exploration Rate (%) 19 | 3 22 26 38 3 45 8 30 2 Regions Visited 8 Branch Regions . Pre-discovered Areas . | . . . . . . . . . Known Exits Taken 4 | . . 1 1 1 . 1 . . Unknown Exits Taken 2 | 1 1 . . . . . . . Scrap Searched . | . . . . . . . . . Spaces Dug 22 | . . 8 6 . . . 8 . Terrain Destroyed 82 | . . 40 6 . . 4 32 . Melee . | . . . . . . . . . Projectile . | . . . . . . . . . AOE 82 | . . 40 6 . . 4 32 . Terrain Rammed . | . . . . . . . . . Walls Destroyed . | . . . . . . . . . Machines Disabled . | . . . . . . . . . Actions | -11 -10 -9 -8 -7 -7 -6 -6 -6 --------- Run | Jun Mat Mat Mat Fac DSF Fac Gar Fac Total 1020 | 22 84 200 198 58 33 209 193 23 Wait . | . . . . . . . . . Move 931 | 20 65 175 185 53 32 206 175 20 Hop 11 | . . 2 5 1 . . 2 1 Pick Up 13 | . 3 6 1 1 . 1 1 . Fast Attach 15 | 2 . 4 3 2 1 . 2 1 Attach 9 | . . 4 1 . . 1 2 1 Detach 2 | . . . . . . . 2 . Swap 1 | . . . 1 . . . . . Drop 8 | . . 3 1 1 . . 3 . Fire 12 | . . 6 1 . . 1 4 . Melee . | . . . . . . . . . Ram 16 | . 16 . . . . . . . Kick . | . . . . . . . . . Crush . | . . . . . . . . . Escape Stasis 2 | . . . . . . . 2 . Rewire . | . . . . . . . . . Trap . | . . . . . . . . . Miscellaneous . | . . . . . . . . . Route ------- -11/Junkyard -10/Materials -9/Materials (discovered 2 exits: *Mat / [*Min]) -8/Materials -7/Factory -7/DSF -6/Factory -6/Garrison (discovered 2 exits: *Fac x2) -6/Factory History --------- Turn | Location | Event 2 | -11/Junkyard | Met Revision 17 9 | -11/Junkyard | Discovered new exit (range 12) 14 | -11/Junkyard | Entered Materials 58 | -10/Materials | Discovered new exit (range 16) 66 | -10/Materials | Entered another Materials area 66 | -9/Materials | Evolved 2 slots: Propulsion x1, Utility x1 120 | -9/Materials | Destroyed 7 combat bots 142 | -9/Materials | Discovered new exit (range 11) 164 | -9/Materials | Discovered new exit (range 4) 165 | -9/Materials | Identified exit to Materials 165 | -9/Materials | Entered another Materials area 165 | -8/Materials | Evolved 2 slots: Propulsion x1, Utility x1 237 | -8/Materials | Discovered new exit (range 13) 240 | -8/Materials | Identified exit to Factory 240 | -8/Materials | Entered Factory 240 | -7/Factory | Evolved 2 slots: Propulsion x1, Utility x1 259 | -7/Factory | Identified exit to DSF 259 | -7/Factory | Entered DSF 266 | -7/DSF | Discovered new exit (range 14) 269 | -7/DSF | Identified exit to Factory 269 | -7/DSF | Entered Factory 269 | -6/Factory | Evolved 2 slots: Propulsion x1, Utility x1 321 | -6/Factory | Spotted B-75 Beast 325 | -6/Factory | Identified exit to Garrison 325 | -6/Factory | Entered Garrison 329 | -6/Garrison | Spotted B-90 Cyclops 347 | -6/Garrison | Discovered new exit (range 10) 349 | -6/Garrison | Identified exit to Factory 349 | -6/Garrison | Attempted to access garrison exit controls, blocked by remote lockdown 381 | -6/Garrison | Core integrity fell below 50% 389 | -6/Garrison | Discovered exit to Factory (range 11) 396 | -6/Garrison | Entered Factory 405 | -6/Factory | Self-destructed Last Messages --------------- 00366_ Dropped Mni. Grenade Launcher. 00366_ Flight Unit destroyed. 00367_ Dropped Hrd. Light Armor Plating. 00368_ Flight Unit destroyed. 00375_ Knocked back. 00376_ C-17 Slicer destroyed. 00382_ S-27 Virus destroyed. 00384_ Acquired 4 matter. 00386_ The unstable cave ceiling collapses. 00387_ Acquired Surge Thruster. 00389_ Acquired 20 matter. 00389_ EXIT=FOUND: FACTORY 00390_ Acquired Surge Thruster. 00393_ Mni. Grenade Launcher destroyed. LOCATION=FACTORY GOAL=ESCAPE 00398_ System corrupted: Heat flow error (+223). 00400_ Acquired Imp. Sensor Array. 00404_ >> Machine Analyzer network decryption results: 00404_ Terminal x2 Map ----- +----------------------------------------------------+ | ????????????????????????????????????????????????? | | ???????????????????T????????????????????????????? | | ????????????????????????????????????????????????? | | ????????????????????????????????????????????????? | | ????????????????????????????????????????????????? | | ????????????????????????????????????????????????? | | ?????????????????????????? ???????????????????? | | ????????????"""""""??? ? ???????????????????? | | ????????????"""""""??# ???????????????????? | | ????????????"""""""??# #???##############?? | | ????????????"""""""??+ #???# #?? | | ?????????????????????# #???# #?? | | ?????????????????????# #???# #?? | | ?????????????????????# #???# #?? | | ?????????????????????# #???# #?? | | ?????????????????????# #???# #?? | | ????????????? ######## #???# #?? | | ????????????? #???# #?? | | ????????????? #???# +?? | | ????????????# ##### #?? | | ????????????+ + = #?? | | ????????????# ##### = #?? | | ????????????# #???########+##### | | ????????????+ #???????# | | ??????????????###########A##+####????# | | ???????????????????# @ #????# | | ???????????????????# """"""""" #????# | | ???????????????????# ]#????# | | ???????????????????# """"""""" #????###########+ | | ???????????????????# =#???????????????? | | ???????????????????# """"""""" ????????????????? | | ???????????????????# #???????????????? | | ???????????????????# ???????????????????? | | ?????????????????????" ! ????????????????????? | | ?????????????????????T? ??????????????????????? | | ?????????????????????"??????????????????????????? | | ????????????????????????????????????????????????? | | ????????????????????????????????????????????????? | | ????????????????????????????????????????????????? | | ????????????????????????????????????????????????? | | ????????????????????????????????????????????????? | | ????????????????????????????????????????????????? | | ????????????????????????????????????????????????? | | ????????????????????????????????????????????????? | | ????????????????????????????????????????????????? | | ????????????????????????????????????????????????? | | ????????????????????????????????????????????????? | | ????????????????????????????????????????????????? | | ????????????????????????????????????????????????? | | ????????????????????????????????????????????????? | +----------------------------------------------------+ Best States ------------- Heat Dissipation 37 Energy Generation 15 Energy Capacity 250 Matter Stores 300 Matter Capacity 300 Sight Range 16 Terrain Scan Density 10 Armor Coverage 300 Evasion (%) 65 Recoil Reduction 3 Item Schematics ----------------- None Robot Schematics ------------------ None Fabricated ------------ Nothing Alien Tech Used ----------------- None Achievements -------------- Short-term Sacrifices Challenges ------------ None Game ------ Seed RestorationSpreadExoskeleton Manual? 0 Play Time 00:17:32 Cumulative 230.4 hours Start 2023.03.22 @ 20:11:06 End 2023.03.22 @ 20:28:20 Sessions 1 Manual Loads 0 Difficulty Rogue Special Mode None Game No. 125 Rogue 125 Adventurer 0 Explorer 0 Win Type - Total 10 Types 6/0/1/2/0/0/1/0/0 Lore% 77 Gallery% 80 Achievement% 74 Wizard Run 0 Options --------- ASCII 0 Keyboard 1 Movement Arrows Keybinds 0 Fullscreen 2 Font 18/X11 Map View 76x50 Tactical HUD 1 Map Filters NONE Filters NONE Steam 1 RUN: 6883de03-f5e5-4314-9053-4f3bda0f211f